fUST/lending_fUST_20250408
["ID","MTS","AMOUNT","RATE_DAILY","PERIOD"]
[357452963,1744072261952,-500.0,0.00024657,2]
[357452964,1744072261961,-500.0,0.00024657,2]
[357452965,1744072261971,-500.0,0.00024657,2]
[357452966,1744072261980,-500.0,0.00024657,2]
[357452967,1744072261990,-592.63,0.00024657,2]
[357452968,1744072262000,-500.0,0.00024657,2]
[357452969,1744072262011,-500.0,0.00024657,2]
[357452970,1744072262020,-766.38,0.00024657,2]
[357452971,1744072262030,-1098.07,0.00024657,2]
[357452972,1744072262040,-373.20306383,0.00024657,2]
[357452973,1744072262050,-500.0,0.00024657,2]
[357452974,1744072262060,-500.0,0.00024657,2]
[357452975,1744072262070,-500.0,0.00024657,2]
[357452976,1744072262080,-500.0,0.00024657,2]
[357452977,1744072262090,-262.54132987,0.00024657,2]
[357452978,1744072262101,-1281.59,0.00024657,2]
[357452979,1744072262114,-657.29,0.00024657,2]
[357452980,1744072262124,-504.96,0.00024657,2]
[357452981,1744072262135,-2269.19,0.00024657,2]
[357452982,1744072262146,-521.93,0.00024657,2]
[357452983,1744072262156,-500.0,0.00024657,2]
[357452984,1744072262167,-1136.21,0.00024657,2]
[357452985,1744072262178,-544.91055002,0.00024657,2]
[357452986,1744072262189,-500.0,0.00024657,2]
[357452987,1744072262199,-500.0,0.00024657,2]
[357452988,1744072262210,-500.0,0.00024657,2]
[357452989,1744072262222,-2122.13,0.00024657,2]
[357452990,1744072262233,-2281.97,0.00024657,2]
[357452991,1744072262244,-1249.61,0.00024657,2]
[357452992,1744072262255,-2553.3,0.00024657,2]
[357452993,1744072262267,-4924.76,0.00024657,2]
[357452994,1744072262278,-2655.44,0.00024657,2]
[357452995,1744072262287,-500.0,0.00024657,2]
[357452996,1744072262298,-539.16,0.00024657,2]
[357452997,1744072262307,-500.0,0.00024657,2]
[357452998,1744072262317,-454.01450457,0.00024657,2]
[357452999,1744072262327,-1462.38,0.00024657,2]
[357453000,1744072262336,-500.0,0.00024657,2]
[357453001,1744072262346,-992.38,0.00024657,2]
[357453002,1744072262355,-500.0,0.00024657,2]
[357453003,1744072262370,-1286.42,0.00024657,2]
[357453004,1744072262379,-715.83,0.00024657,2]
[357453005,1744072262389,-500.0,0.00024657,2]
[357453006,1744072262399,-500.0,0.00024657,2]
[357453007,1744072262408,-1578.91,0.00024657,2]
[357453008,1744072262418,-901.29,0.00024657,2]
[357453009,1744072262427,-500.0,0.00024657,2]
[357453010,1744072262437,-500.0,0.00024657,2]
[357453011,1744072262448,-1302.21,0.00024657,2]
[357453012,1744072262457,-822.32,0.00024657,2]
[357453013,1744072262467,-586.6,0.00024657,2]
[357453014,1744072262476,-500.0,0.00024657,2]
[357453015,1744072262486,-500.0,0.00024657,2]
[357453016,1744072262497,-500.0,0.00024657,2]
[357453017,1744072262506,-2863.04,0.00024657,2]
[357453018,1744072262516,-500.0,0.00024657,2]
[357453019,1744072262525,-1809.72,0.00024657,2]
[357453020,1744072262534,-500.0,0.00024657,2]
[357453021,1744072262544,-1698.96,0.00024657,2]
[357453022,1744072262553,-500.0,0.00024657,2]
[357453023,1744072262563,-500.0,0.00024657,2]
[357453024,1744072262574,-500.0,0.00024657,2]
[357453025,1744072262583,-500.0,0.00024657,2]
[357453026,1744072262593,-1648.87,0.00024657,2]
[357453027,1744072262603,-500.0,0.00024657,2]
[357453028,1744072262614,-1498.83,0.00024657,2]
[357453029,1744072262625,-1155.35,0.00024657,2]
[357453030,1744072262634,-500.0,0.00024657,2]
[357453031,1744072262643,-151.0,0.00024657,7]
[357453032,1744072262655,-1146.31,0.00024657,2]
[357453033,1744072262665,-1027.64,0.00024657,2]
[357453034,1744072262675,-1023.13,0.00024657,2]
[357453035,1744072262685,-200.0,0.00024657,2]
[357453036,1744072262694,-151.0,0.00024657,7]
[357453037,1744072262704,-500.0,0.00024657,2]
[357453038,1744072262714,-500.0,0.00024657,2]
[357453039,1744072262724,-500.0,0.00024657,2]
[357453040,1744072262733,-257.29870656,0.00024657,2]
[357453041,1744072262744,-339.5949324,0.00024657,2]
[357453042,1744072262754,-500.0,0.00024657,2]
[357453043,1744072262763,-500.0,0.00024657,2]
[357453044,1744072262772,-985.96,0.00024657,2]
[357453045,1744072262782,-528.61,0.00024657,2]
[357453046,1744072262791,-500.0,0.00024657,2]
[357453047,1744072262800,-1239.2,0.00024657,2]
[357453048,1744072262809,-2365.3,0.00024657,2]
[357453049,1744072262818,-1215.4,0.00024657,2]
[357453050,1744072262827,-500.0,0.00024657,2]
[357453051,1744072262836,-545.75,0.00024657,2]
[357453052,1744072262845,-500.0,0.00024657,2]
[357453053,1744072262855,-500.0,0.00024657,2]
[357453054,1744072262866,-500.0,0.00024657,2]
[357453055,1744072262875,-500.0,0.00024657,2]
[357453056,1744072262885,-753.93,0.00024657,2]
[357453057,1744072262894,-1098.37,0.00024657,2]
[357453058,1744072262904,-501.5,0.00024657,2]
[357453059,1744072262913,-8516.27,0.00024657,2]
[357453060,1744072262923,-500.0,0.00024657,2]
[357453061,1744072262933,-1013.38,0.00024657,2]
[357453062,1744072262942,-500.0,0.00024657,2]
[357453063,1744072262952,-1848.98,0.00024657,2]
[357453064,1744072263077,-1239.8,0.00024657,2]
[357453065,1744072263089,-500.0,0.00024657,2]
[357453066,1744072263099,-500.0,0.00024657,2]
[357453067,1744072263111,-958.54,0.00024657,2]
[357453068,1744072263120,-500.0,0.00024657,2]
[357453069,1744072263131,-1508.9,0.00024657,2]
[357453070,1744072263141,-500.0,0.00024657,2]
[357453071,1744072263151,-500.0,0.00024658,2]
[357453072,1744072263162,-500.0,0.00024658,2]
[357453073,1744072263173,-500.0,0.00024658,2]
[357453074,1744072263184,-500.0,0.00024658,2]
[357453075,1744072263197,-500.0,0.00024658,2]
[357453076,1744072263207,-500.0,0.00024658,2]
[357453077,1744072263218,-500.0,0.00024658,2]
[357453078,1744072263229,-500.0,0.00024658,2]
[357453079,1744072263239,-500.0,0.00024658,2]
[357453080,1744072263249,-500.0,0.00024658,2]
[357453081,1744072263259,-500.0,0.00024658,2]
[357453082,1744072263269,-500.0,0.00024658,2]
[357453083,1744072263279,-500.0,0.00024658,2]
[357453084,1744072263288,-500.0,0.00024658,2]
[357453085,1744072263298,-500.0,0.00024658,2]
[357453086,1744072263308,-500.0,0.00024658,2]
[357453087,1744072263318,-500.0,0.00024658,2]
[357453088,1744072263328,-500.0,0.00024658,2]
[357453089,1744072263337,-500.0,0.00024658,2]
[357453090,1744072263347,-500.0,0.00024658,2]
[357453091,1744072263357,-500.0,0.00024658,2]
[357453092,1744072263369,-555.50805502,0.00024658,2]
[357453093,1744072263379,-500.0,0.00024658,2]
[357453094,1744072263388,-500.0,0.00024658,2]
[357453095,1744072263398,-500.0,0.00024658,2]
[357453096,1744072263408,-500.0,0.00024658,2]
[357453097,1744072263418,-500.0,0.00024658,2]
[357453098,1744072263428,-500.0,0.00024658,2]
[357453099,1744072263438,-500.0,0.00024658,2]
[357453100,1744072263448,-500.0,0.00024658,2]
[357453101,1744072263459,-500.0,0.00024658,2]
[357453102,1744072263470,-500.0,0.00024658,2]
[357453103,1744072263480,-500.0,0.00024658,2]
[357453104,1744072263492,-500.0,0.00024658,2]
[357453105,1744072263502,-500.0,0.00024658,2]
[357453106,1744072263511,-500.0,0.00024658,2]
[357453107,1744072263521,-500.0,0.00024658,2]
[357453108,1744072263531,-500.0,0.00024658,2]
[357453109,1744072263542,-500.0,0.00024658,2]
[357453110,1744072263552,-500.0,0.00024658,2]
[357453111,1744072263565,-500.0,0.00024658,2]
[357453112,1744072263576,-500.0,0.00024658,2]
[357453113,1744072263591,-500.0,0.00024658,2]
[357453114,1744072263602,-500.0,0.00024658,2]
[357453115,1744072263614,-500.0,0.00024658,2]
[357453116,1744072263625,-500.0,0.00024658,2]
[357453117,1744072263635,-500.0,0.00024658,2]
[357453118,1744072263646,-500.0,0.00024658,2]
[357453119,1744072263656,-500.0,0.00024658,2]
[357453120,1744072263666,-500.0,0.00024658,2]
[357453121,1744072263677,-500.0,0.00024658,2]
[357453122,1744072263687,-500.0,0.00024658,2]
[357453123,1744072263698,-500.0,0.00024658,2]
[357453124,1744072263707,-500.0,0.00024658,2]
[357453125,1744072263717,-500.0,0.00024658,2]
[357453126,1744072263726,-1950.12574552,0.00024661,2]
[357453127,1744072263736,-501.15011784,0.00024673,2]
[357453128,1744072263746,-182.28058582,0.00024673,2]
[357453129,1744072263756,-501.46052507,0.00024673,2]
[357453130,1744072263765,-500.0,0.00024673,2]
[357453131,1744072263775,-301.61256696,0.00024673,2]
[357453132,1744072263785,-500.0,0.00024673,2]
[357453133,1744072263795,-500.0,0.00024673,2]
[357453134,1744072263804,-254.91781883,0.00024673,2]
[357453135,1744072263814,-419.36665037,0.000249,3]
[357453136,1744072263824,-20644.02708524,0.000249,3]
[357453137,1744072263835,-27285.3344205,0.000249,2]
[357453138,1744072263845,-160.0,0.000249,3]
[357453139,1744072263855,-160.0,0.000249,3]
[357453140,1744072263866,-290.742792,0.000249,7]
[357453141,1744072263876,-290.742792,0.000249,7]
[357453142,1744072263886,-442.522977,0.000249,7]
[357453143,1744072263896,-442.522977,0.000249,7]
[357453144,1744072263905,-252.3801,0.000249,7]
[357453145,1744072263915,-252.3801,0.000249,7]
[357453146,1744072263926,-151.0,0.000249,7]
[357453147,1744072263936,-262.675955,0.000249,7]
[357453148,1744072263946,-151.0,0.000249,2]
[357453149,1744072263956,-151.0,0.000249,2]
[357453150,1744072263965,-389628.458018,0.000249,2]
[357453151,1744072263976,-151.0,0.000249,7]
[357453152,1744072263986,-151.0,0.000249,7]
[357453153,1744072263996,-151.0,0.000249,7]
[357453154,1744072264006,-151.0,0.000249,2]
[357453155,1744072264016,-160.0,0.00024916,3]
[357453156,1744072264027,-783.73948285,0.00024916,3]
[357453157,1744072264038,-18936.01775208,0.00024916,2]
[357453158,1744072264048,-500.0,0.00024931,2]
[357453159,1744072264058,-500.0,0.00024931,2]
[357453160,1744072264069,-500.0,0.00024931,2]
[357453161,1744072264079,-239.16027391,0.00024931,2]
[357453162,1744072264088,-500.0,0.00024931,2]
[357453163,1744072264098,-212.88260128,0.00024931,2]
[357453164,1744072264108,-500.0,0.00024931,2]
[357453165,1744072264118,-500.0,0.00024931,2]
[357453166,1744072264128,-501.64,0.00024931,2]
[357453167,1744072264138,-548.37,0.00024931,2]
[357453168,1744072264149,-500.0,0.00024931,2]
[357453169,1744072264158,-500.0,0.00024931,2]
[357453170,1744072264168,-536.65,0.00024931,2]
[357453171,1744072264177,-500.0,0.00024931,2]
[357453172,1744072264187,-518.90451305,0.00024931,2]
[357453173,1744072264196,-500.0,0.00024931,2]
[357453174,1744072264206,-1119.87,0.00024931,2]
[357453175,1744072264216,-500.0,0.00024931,2]
[357453176,1744072264226,-1199.5,0.00024931,2]
[357453177,1744072264235,-618.07,0.00024931,2]
[357453178,1744072264245,-500.0,0.00024931,2]
[357453179,1744072264254,-1036.15,0.00024931,2]
[357453180,1744072264264,-528.55,0.00024931,2]
[357453181,1744072264274,-500.0,0.00024931,2]
[357453182,1744072264284,-991.44,0.00024931,2]
[357453183,1744072264294,-500.0,0.00024931,2]
[357453184,1744072264303,-627.37,0.00024931,2]
[357453185,1744072264313,-509.11864566,0.00024931,2]
[357453186,1744072264322,-500.0,0.00024931,2]
[357453187,1744072264332,-500.0,0.00024931,2]
[357453188,1744072264342,-500.0,0.00024931,2]
[357453189,1744072264358,-630.12,0.00024931,2]
[357453190,1744072264370,-500.0,0.00024931,2]
[357453191,1744072264381,-1246.42,0.00024931,2]
[357453192,1744072264391,-764.69,0.00024931,2]
[357453193,1744072264402,-1246.58,0.00024931,2]
[357453194,1744072264412,-500.0,0.00024931,2]
[357453195,1744072264422,-818.18,0.00024931,2]
[357453196,1744072264433,-500.0,0.00024931,2]
[357453197,1744072264443,-500.0,0.00024931,2]
[357453198,1744072264453,-500.0,0.00024931,2]
[357453199,1744072264463,-500.0,0.00024931,2]
[357453200,1744072264473,-520.32831727,0.00024931,2]
[357453201,1744072264484,-500.0,0.00024931,2]
[357453202,1744072264494,-500.0,0.00024931,2]
[357453203,1744072264504,-161.70958082,0.00024931,2]
[357453204,1744072264514,-500.0,0.00024931,2]
[357453205,1744072264525,-285.89543412,0.00024931,2]
[357453206,1744072264535,-500.0,0.00024931,2]
[357453207,1744072264545,-500.0,0.00024931,2]
[357453208,1744072264556,-592.63,0.00024931,2]
[357453209,1744072264566,-500.0,0.00024931,2]
[357453210,1744072264579,-500.0,0.00024931,2]
[357453211,1744072264589,-766.38,0.00024931,2]
[357453212,1744072264599,-1098.07,0.00024931,2]
[357453213,1744072264609,-500.0,0.00024931,2]
[357453214,1744072264621,-500.0,0.00024931,2]
[357453215,1744072264631,-500.0,0.00024931,2]
[357453216,1744072264641,-500.0,0.00024931,2]
[357453217,1744072264654,-1281.59,0.00024931,2]
[357453218,1744072264664,-657.29,0.00024931,2]
[357453219,1744072264675,-504.96,0.00024931,2]
[357453220,1744072264685,-2269.19,0.00024931,2]
[357453221,1744072264695,-521.93,0.00024931,2]
[357453222,1744072264705,-500.0,0.00024931,2]
[357453223,1744072264715,-1136.21,0.00024931,2]
[357453224,1744072264724,-643.40520607,0.00024931,2]
[357453225,1744072264735,-500.0,0.00024931,2]
[357453226,1744072264745,-500.0,0.00024931,2]
[357453227,1744072264755,-2122.13,0.00024931,2]
[357453228,1744072264765,-2281.97,0.00024931,2]
[357453229,1744072264775,-1249.61,0.00024931,2]
[357453230,1744072264785,-2553.3,0.00024931,2]
[357453231,1744072264795,-4924.76,0.00024931,2]
[357453232,1744072264806,-2655.44,0.00024931,2]
[357453233,1744072264816,-500.0,0.00024931,2]
[357453234,1744072264826,-539.16,0.00024931,2]
[357453235,1744072264835,-500.0,0.00024931,2]
[357453236,1744072264845,-1462.38,0.00024931,2]
[357453237,1744072264855,-500.0,0.00024931,2]
[357453238,1744072264866,-992.38,0.00024931,2]
[357453239,1744072264876,-500.0,0.00024931,2]
[357453240,1744072264886,-1286.42,0.00024931,2]
[357453241,1744072264897,-715.83,0.00024931,2]
[357453242,1744072264907,-500.0,0.00024931,2]
[357453243,1744072264916,-500.0,0.00024931,2]
[357453244,1744072264926,-1578.91,0.00024931,2]
[357453245,1744072264936,-901.29,0.00024931,2]
[357453246,1744072264946,-500.0,0.00024931,2]
[357453247,1744072264955,-500.0,0.00024931,2]
[357453248,1744072264965,-1302.21,0.00024931,2]
[357453249,1744072264976,-822.32,0.00024931,2]
[357453250,1744072264988,-586.6,0.00024931,2]
[357453251,1744072264998,-500.0,0.00024931,2]
[357453252,1744072265008,-500.0,0.00024931,2]
[357453253,1744072265017,-500.0,0.00024931,2]
[357453254,1744072265028,-2863.04,0.00024931,2]
[357453255,1744072265038,-500.0,0.00024931,2]
[357453256,1744072265048,-1809.72,0.00024931,2]
[357453257,1744072265058,-500.0,0.00024931,2]
[357453258,1744072265068,-1698.96,0.00024931,2]
[357453259,1744072265079,-500.0,0.00024931,2]
[357453260,1744072265089,-500.0,0.00024931,2]
[357453261,1744072265223,-500.0,0.00024931,2]
[357453262,1744072265234,-500.0,0.00024931,2]
[357453263,1744072265245,-1648.87,0.00024931,2]
[357453264,1744072265255,-202.82888636,0.00024931,2]
[357453265,1744072265265,-1498.83,0.00024931,2]
[357453266,1744072265275,-1155.35,0.00024931,2]
[357453267,1744072265285,-500.0,0.00024931,2]
[357453268,1744072265295,-1146.31,0.00024931,2]
[357453269,1744072265306,-1027.64,0.00024931,2]
[357453270,1744072265317,-1023.13,0.00024931,2]
[357453271,1744072265327,-500.0,0.00024931,2]
[357453272,1744072265337,-500.0,0.00024931,2]
[357453273,1744072265348,-500.0,0.00024931,2]
[357453274,1744072265358,-985.96,0.00024931,2]
[357453275,1744072265369,-528.61,0.00024931,2]
[357453276,1744072265379,-500.0,0.00024931,2]
[357453277,1744072265390,-1239.2,0.00024931,2]
[357453278,1744072265400,-2365.3,0.00024931,2]
[357453279,1744072265410,-1215.4,0.00024931,2]
[357453280,1744072265420,-500.0,0.00024931,2]
[357453281,1744072265430,-545.75,0.00024931,2]
[357453282,1744072265440,-500.0,0.00024931,2]
[357453283,1744072265450,-500.0,0.00024931,2]
[357453284,1744072265461,-500.0,0.00024931,2]
[357453285,1744072265470,-500.0,0.00024931,2]
[357453286,1744072265481,-753.93,0.00024931,2]
[357453287,1744072265490,-1098.37,0.00024931,2]
[357453288,1744072265500,-501.5,0.00024931,2]
[357453289,1744072265510,-8516.27,0.00024931,2]
[357453290,1744072265519,-500.0,0.00024931,2]
[357453291,1744072265529,-1013.38,0.00024931,2]
[357453292,1744072265538,-500.0,0.00024931,2]
[357453293,1744072265548,-1848.98,0.00024931,2]
[357453294,1744072265558,-1239.8,0.00024931,2]
[357453295,1744072265568,-500.0,0.00024931,2]
[357453296,1744072265581,-478.00299089,0.00024931,2]
[357453297,1744072265591,-958.54,0.00024931,2]
[357453298,1744072265601,-500.0,0.00024931,2]
[357453299,1744072265612,-1508.9,0.00024931,2]
[357453300,1744072265622,-5000.0,0.00025,3]
[357453301,1744072265632,-91098.47845151,0.00025,2]
[357453302,1744072265642,-1877.78745542,0.00025,2]
[357453303,1744072265653,-693.87128215,0.00025171,2]
[357453304,1744072265663,-12527.9349248,0.00025205,3]
[357453305,1744072265673,-500.0,0.00025205,2]
[357453306,1744072265683,-500.0,0.00025205,2]
[357453307,1744072265694,-500.0,0.00025205,2]
[357453308,1744072265703,-500.0,0.00025205,2]
[357453309,1744072265713,-500.0,0.00025205,2]
[357453310,1744072265723,-500.0,0.00025205,2]
[357453311,1744072265734,-501.64,0.00025205,2]
[357453312,1744072265743,-548.37,0.00025205,2]
[357453313,1744072265753,-500.0,0.00025205,2]
[357453314,1744072265763,-500.0,0.00025205,2]
[357453315,1744072265772,-536.65,0.00025205,2]
[357453316,1744072265782,-500.0,0.00025205,2]
[357453317,1744072265792,-500.0,0.00025205,2]
[357453318,1744072265802,-1119.87,0.00025205,2]
[357453319,1744072265811,-500.0,0.00025205,2]
[357453320,1744072265822,-1199.5,0.00025205,2]
[357453321,1744072265845,-618.07,0.00025205,2]
[357453322,1744072265855,-500.0,0.00025205,2]
[357453323,1744072265867,-1036.15,0.00025205,2]
[357453324,1744072265877,-528.55,0.00025205,2]
[357453325,1744072265888,-500.0,0.00025205,2]
[357453326,1744072265898,-991.44,0.00025205,2]
[357453327,1744072265909,-500.0,0.00025205,2]
[357453328,1744072265918,-627.37,0.00025205,2]
[357453329,1744072265929,-500.0,0.00025205,2]
[357453330,1744072265940,-500.0,0.00025205,2]
[357453331,1744072265950,-500.0,0.00025205,2]
[357453332,1744072265960,-630.12,0.00025205,2]
[357453333,1744072265971,-500.0,0.00025205,2]
[357453334,1744072265980,-1246.42,0.00025205,2]
[357453335,1744072265991,-764.69,0.00025205,2]
[357453336,1744072266002,-1246.58,0.00025205,2]
[357453337,1744072266013,-500.0,0.00025205,2]
[357453338,1744072266023,-818.18,0.00025205,2]
[357453339,1744072266033,-500.0,0.00025205,2]
[357453340,1744072266044,-500.0,0.00025205,2]
[357453341,1744072266055,-500.0,0.00025205,2]
[357453342,1744072266065,-618.29371879,0.00025205,2]
[357453343,1744072266076,-500.0,0.00025205,2]
[357453344,1744072266086,-500.0,0.00025205,2]
[357453345,1744072266096,-500.0,0.00025205,2]
[357453346,1744072266107,-500.0,0.00025205,2]
[357453347,1744072266117,-500.0,0.00025205,2]
[357453348,1744072266127,-592.63,0.00025205,2]
[357453349,1744072266138,-500.0,0.00025205,2]
[357453350,1744072266148,-500.0,0.00025205,2]
[357453351,1744072266158,-766.38,0.00025205,2]
[357453352,1744072266168,-1098.07,0.00025205,2]
[357453353,1744072266179,-500.0,0.00025205,2]
[357453354,1744072266189,-500.0,0.00025205,2]
[357453355,1744072266198,-500.0,0.00025205,2]
[357453356,1744072266209,-500.0,0.00025205,2]
[357453357,1744072266219,-1281.59,0.00025205,2]
[357453358,1744072266230,-657.29,0.00025205,2]
[357453359,1744072266240,-504.96,0.00025205,2]
[357453360,1744072266251,-2269.19,0.00025205,2]
[357453361,1744072266262,-521.93,0.00025205,2]
[357453362,1744072266271,-1136.21,0.00025205,2]
[357453363,1744072266281,-500.0,0.00025205,2]
[357453364,1744072266291,-500.0,0.00025205,2]
[357453365,1744072266302,-500.0,0.00025205,2]
[357453366,1744072266312,-2122.13,0.00025205,2]
[357453367,1744072266322,-2281.97,0.00025205,2]
[357453368,1744072266332,-1249.61,0.00025205,2]
[357453369,1744072266343,-2553.3,0.00025205,2]
[357453370,1744072266353,-4924.76,0.00025205,2]
[357453371,1744072266365,-2655.44,0.00025205,2]
[357453372,1744072266375,-500.0,0.00025205,2]
[357453373,1744072266386,-539.16,0.00025205,2]
[357453374,1744072266396,-500.0,0.00025205,2]
[357453375,1744072266406,-1462.38,0.00025205,2]
[357453376,1744072266418,-500.0,0.00025205,2]
[357453377,1744072266430,-992.38,0.00025205,2]
[357453378,1744072266441,-467.51538319,0.00025205,2]
[357453379,1744072266457,-1286.42,0.00025205,2]
[357453380,1744072266467,-715.83,0.00025205,2]
[357453381,1744072266478,-500.0,0.00025205,2]
[357453382,1744072266488,-500.0,0.00025205,2]
[357453383,1744072266498,-1578.91,0.00025205,2]
[357453384,1744072266508,-901.29,0.00025205,2]
[357453385,1744072266518,-500.0,0.00025205,2]
[357453386,1744072266528,-500.0,0.00025205,2]
[357453387,1744072266538,-1302.21,0.00025205,2]
[357453388,1744072266548,-822.32,0.00025205,2]
[357453389,1744072266559,-586.6,0.00025205,2]
[357453390,1744072266571,-500.0,0.00025205,2]
[357453391,1744072266581,-453.15147832,0.00025205,2]
[357453392,1744072266591,-500.0,0.00025205,2]
[357453393,1744072266600,-2863.04,0.00025205,2]
[357453394,1744072266611,-500.0,0.00025205,2]
[357453395,1744072266622,-1809.72,0.00025205,2]
[357453396,1744072266632,-500.0,0.00025205,2]
[357453397,1744072266642,-1698.96,0.00025205,2]
[357453398,1744072266654,-500.0,0.00025205,2]
[357453399,1744072266664,-500.0,0.00025205,2]
[357453400,1744072266674,-500.0,0.00025205,2]
[357453401,1744072266684,-500.0,0.00025205,2]
[357453402,1744072266693,-1648.87,0.00025205,2]
[357453403,1744072266703,-1498.83,0.00025205,2]
[357453404,1744072266713,-1155.35,0.00025205,2]
[357453405,1744072266723,-500.0,0.00025205,2]
[357453406,1744072266733,-1146.31,0.00025205,2]
[357453407,1744072266743,-1027.64,0.00025205,2]
[357453408,1744072266753,-1023.13,0.00025205,2]
[357453409,1744072266763,-500.0,0.00025205,2]
[357453410,1744072266772,-500.0,0.00025205,2]
[357453411,1744072266782,-500.0,0.00025205,2]
[357453412,1744072266792,-985.96,0.00025205,2]
[357453413,1744072266802,-528.61,0.00025205,2]
[357453414,1744072266812,-500.0,0.00025205,2]
[357453415,1744072266821,-1239.2,0.00025205,2]
[357453416,1744072266831,-2365.3,0.00025205,2]
[357453417,1744072266841,-1215.4,0.00025205,2]
[357453418,1744072266851,-500.0,0.00025205,2]
[357453419,1744072266862,-545.75,0.00025205,2]
[357453420,1744072266871,-500.0,0.00025205,2]
[357453421,1744072266881,-500.0,0.00025205,2]
[357453422,1744072266891,-500.0,0.00025205,2]
[357453423,1744072266901,-500.0,0.00025205,2]
[357453424,1744072266910,-753.93,0.00025205,2]
[357453425,1744072266920,-1098.37,0.00025205,2]
[357453426,1744072266929,-501.5,0.00025205,2]
[357453427,1744072266939,-8516.27,0.00025205,2]
[357453428,1744072266949,-500.0,0.00025205,2]
[357453429,1744072266958,-1013.38,0.00025205,2]
[357453430,1744072266967,-500.0,0.00025205,2]
[357453431,1744072266977,-1848.98,0.00025205,2]
[357453432,1744072266986,-1239.8,0.00025205,2]
[357453433,1744072266996,-500.0,0.00025205,2]
[357453434,1744072267006,-958.54,0.00025205,2]
[357453435,1744072267016,-500.0,0.00025205,2]
[357453436,1744072267026,-1508.9,0.00025205,2]
[357453437,1744072267035,-223.0315306,0.00025211,2]
[357453438,1744072267045,-900.0,0.00025469,3]
[357453439,1744072267055,-500.0,0.00025479,2]
[357453440,1744072267065,-500.0,0.00025479,2]
[357453441,1744072267075,-500.0,0.00025479,2]
[357453442,1744072267222,-500.0,0.00025479,2]
[357453443,1744072267233,-500.0,0.00025479,2]
[357453444,1744072267243,-500.0,0.00025479,2]
[357453445,1744072267253,-501.64,0.00025479,2]
[357453446,1744072267262,-548.37,0.00025479,2]
[357453447,1744072267272,-500.0,0.00025479,2]
[357453448,1744072267282,-500.0,0.00025479,2]
[357453449,1744072267293,-536.65,0.00025479,2]
[357453450,1744072267303,-424.59,0.00025479,2]
[357453451,1744072267312,-500.0,0.00025479,2]
[357453452,1744072267322,-1119.87,0.00025479,2]
[357453453,1744072267332,-500.0,0.00025479,2]
[357453454,1744072267341,-1199.5,0.00025479,2]
[357453455,1744072267351,-618.07,0.00025479,2]
[357453456,1744072267361,-500.0,0.00025479,2]
[357453457,1744072267373,-1036.15,0.00025479,2]
[357453458,1744072267383,-528.55,0.00025479,2]
[357453459,1744072267395,-500.0,0.00025479,2]
[357453460,1744072267404,-991.44,0.00025479,2]
[357453461,1744072267414,-197.98892385,0.00025479,2]
[357453462,1744072267423,-627.37,0.00025479,2]